fUSD/lending_fUSD_20240324
["ID","MTS","AMOUNT","RATE_DAILY","PERIOD"]
[320294213,1711255838144,-130828.19494014,0.0001648,2]
[320294214,1711255838156,-2751.0,0.00016536,2]
[320294215,1711255838168,-1131.42,0.00016543,2]
[320294216,1711255838180,-250.0,0.00016572,2]
[320294217,1711255838191,-226.18,0.00016593,2]
[320294218,1711255838202,-250.0,0.00016594,2]
[320294219,1711255838213,-1000.0,0.0001661,2]
[320294220,1711255838224,-196.68,0.00016611,2]
[320294221,1711255838235,-3429.84,0.00016637,2]
[320294222,1711255838247,-150.57,0.00016693,2]
[320294223,1711255838257,-150.0,0.00016768,2]
[320294225,1711255838268,-499.99,0.00016838,2]
[320294228,1711255838280,-150.57,0.00016983,2]
[320294230,1711255838290,-223.32,0.00016983,2]
[320294232,1711255838301,-2357.99332057,0.00017078,2]
[320294234,1711255838312,-150.57,0.00017273,2]
[320294236,1711255838322,-1251.9739384,0.00017305,2]
[320294239,1711255838333,-877.2436,0.00017305,2]
[320294241,1711255838344,-12490.24469377,0.000175,2]
[320294243,1711255838355,-150.57,0.00017563,2]
[320294245,1711255838366,-150.0,0.00017631,2]
[320294247,1711255838376,-1376.69687202,0.0001779,2]
[320294250,1711255838387,-3000.0,0.0001782,2]
[320294252,1711255838398,-800.0,0.00017836,2]
[320294254,1711255838408,-200.0,0.00017851,2]
[320294256,1711255838419,-200.0,0.00017855,2]
[320294258,1711255838429,-800.0,0.00017855,2]
[320294260,1711255838440,-200.0,0.00017855,2]
[320294262,1711255838451,-500.0,0.00017855,2]
[320294265,1711255838461,-200.0,0.00017855,2]
[320294267,1711255838471,-800.0,0.00017855,2]
[320294269,1711255838483,-200.0,0.00017855,2]
[320294271,1711255838493,-200.0,0.00017856,2]
[320294273,1711255838503,-800.0,0.00017856,2]
[320294275,1711255838513,-200.0,0.00017856,2]
[320294277,1711255838524,-800.0,0.00017856,2]
[320294278,1711255838534,-200.0,0.00017856,2]
[320294279,1711255838545,-200.0,0.00017856,2]
[320294280,1711255838556,-200.0,0.00017856,2]
[320294281,1711255838566,-200.0,0.00017856,2]
[320294282,1711255838578,-800.0,0.00017856,2]
[320294283,1711255838589,-800.0,0.00017856,2]
[320294284,1711255838600,-800.0,0.00017856,2]
[320294285,1711255838610,-800.0,0.00017856,2]
[320294286,1711255838620,-200.0,0.00017856,2]
[320294287,1711255838631,-200.0,0.00017856,2]
[320294288,1711255838641,-200.0,0.00017856,2]
[320294289,1711255838651,-200.0,0.00017856,2]
[320294290,1711255838663,-500.0,0.00017856,2]
[320294291,1711255838674,-500.0,0.00017856,2]
[320294292,1711255838684,-200.0,0.00017856,2]
[320294293,1711255838695,-200.0,0.00017856,2]
[320294294,1711255838706,-555.25118339,0.00017888,2]
[320294295,1711255838716,-243.70168594,0.00017889,2]
[320294296,1711255838727,-155.94093826,0.00017889,2]
[320294297,1711255838738,-123972.09454568,0.0001789,2]
[320294298,1711255838750,-676.8833,0.0001789,2]
[320294299,1711255838774,-2351.38298223,0.000179,2]
[320294300,1711255838787,-59631.0036,0.000179,2]
[320294301,1711255838801,-1251.9739384,0.000179,2]
[320294302,1711255838815,-7500.0,0.000179,2]
[320294303,1711255838828,-163.7480105,0.000179,2]
[320294304,1711255838841,-414.99476626,0.000179,2]
[320294305,1711255838855,-476.68027598,0.000179,2]
[320294306,1711255838867,-372.15274738,0.000179,2]
[320294307,1711255838878,-689.68,0.00017988,2]
[320294308,1711255838891,-151.032411,0.00017988,3]
[320294309,1711255838905,-151.032411,0.00017988,3]
[320294310,1711255838916,-151.032411,0.00017988,3]
[320294311,1711255838927,-151.032411,0.00017988,3]
[320294312,1711255838939,-151.032411,0.00017988,2]
[320294313,1711255838950,-151.032411,0.00017988,2]
[320294314,1711255838961,-151.032411,0.00017988,2]
[320294315,1711255838974,-151.032411,0.00017988,2]
[320294316,1711255838986,-151.032411,0.00017988,2]
[320294317,1711255838997,-192.79513505,0.0001799,2]
[320294318,1711255839009,-733.81825966,0.00017998,2]
[320294319,1711255839020,-150.01,0.00017999,2]
[320294320,1711255839032,-5008.75142261,0.00017999,2]
[320294321,1711255839043,-815.0,0.00018,2]
[320294322,1711255839054,-1122418.07175392,0.00018,2]
[320294323,1711255839083,-3499.8,0.00018,2]
[320294334,1711255839962,-250.06776142,0.00018,2]
[320294335,1711255839977,-64058.28147972,0.00018,2]
[320294336,1711255840037,-1290545.46057468,0.00018,2]
[320294337,1711255840048,-488135.95284674,0.00018,2]
[320294338,1711255840060,-357.17595861,0.00018,2]
[320294339,1711255840081,-1202.94291966,0.00018,2]
[320294340,1711255840109,-770.59943442,0.00018,2]
[320294362,1711255842882,-205.47678434,0.00017999,2]
[320294364,1711255842893,-491.00791455,0.00017999,2]
[320294390,1711255846199,-4517.74350806,0.00017999,2]
[320294391,1711255846208,-205195.42518248,0.00018,2]
[320294392,1711255846228,-32481.53867302,0.00018,2]
[320294393,1711255846243,-1799.1749,0.00018,2]
[320294394,1711255846254,-17579.08263215,0.00018,2]
[320294395,1711255846266,-33051.58148425,0.00018,2]
[320294396,1711255846289,-6384.4,0.00018,2]
[320294404,1711256233449,-1229.28872733,0.00016432,2]
[320294405,1711256233472,-403.1819564,0.00016433,2]
[320294406,1711256233497,-212.67,0.00016442,2]
[320294407,1711256233521,-2252.54,0.00017096,2]
[320294408,1711256233544,-753.94,0.00017146,2]
[320294409,1711256233567,-3701.847,0.00017268,2]
[320294410,1711256233591,-200.0,0.0001743,2]
[320294411,1711256233615,-150.0,0.00017652,2]
[320294412,1711256233639,-7617.53231627,0.00017675,2]
[320294413,1711256830116,-1229.28872733,0.00015181,2]
[320294414,1711256830137,-403.1819564,0.00015182,2]
[320294415,1711256830157,-202.03,0.00015185,2]
[320294416,1711256830177,-1314.20509643,0.00016,2]
[320294443,1711256837110,-403.1819564,0.0001518,2]
[320294444,1711256837131,-185.79490357,0.00016,2]
[320294445,1711256837152,-1585.730067,0.0001678,2]
[320294446,1711256837173,-2694.55676072,0.00016783,2]
[320294447,1711256855114,-880.12323928,0.00016783,2]
[320294448,1711256855137,-250.0,0.00016784,2]
[320294449,1711256855160,-222.47,0.00016849,2]
[320294450,1711256855185,-157.80812346,0.00016865,2]
[320294451,1711256855207,-502.29,0.00016965,2]
[320294452,1711256855231,-1197.99526125,0.00016994,2]
[320294453,1711256855254,-840.0,0.00017004,2]
[320294454,1711256855275,-250.0,0.00017008,2]
[320294455,1711256855297,-150.0,0.00017575,2]
[320294456,1711256855318,-316.8571,0.00017576,2]
[320294457,1711256855338,-157.17261292,0.000176,2]
[320294458,1711256855358,-3676.767,0.00017676,2]
[320294459,1711256855378,-1007.0,0.000177,2]
[320294460,1711256855398,-1000.0,0.000177,2]
[320294461,1711256855421,-499.99,0.00017789,2]
[320294462,1711256855442,-155.594653,0.00017808,2]
[320294463,1711256855463,-200.0,0.00017851,2]
[320294464,1711256855482,-200.0,0.00017855,2]
[320294465,1711256855502,-200.0,0.00017855,2]
[320294466,1711256855523,-500.0,0.00017855,2]
[320294467,1711256855543,-200.0,0.00017856,2]
[320294468,1711256855563,-200.0,0.00017856,2]
[320294469,1711256855583,-800.0,0.00017856,2]
[320294470,1711256855603,-200.0,0.00017856,2]
[320294471,1711256855624,-200.0,0.00017856,2]
[320294472,1711256855644,-500.0,0.00017856,2]
[320294473,1711256855664,-200.0,0.00017856,2]
[320294474,1711256855685,-385.57054599,0.00017888,2]
[320294475,1711256855705,-1431.3614641,0.00017888,2]
[320294476,1711256994950,-205.77,0.00015964,2]
[320294477,1711256994972,-403.1819564,0.00017701,2]
[320294478,1711256994993,-250.0,0.00017702,2]
[320294479,1711256995013,-2336.0480436,0.0001782,2]
[320294487,1711257032014,-328.0,0.00017725,2]
[320294488,1711257032024,-37.35210606,0.0001782,2]
[320294489,1711257032183,-626.59985034,0.0001782,2]
[320294490,1711257032194,-1066.21902236,0.00017888,2]
[320294491,1711257032237,-354.44239587,0.00017888,2]
[320294521,1711257038017,-325.87134922,0.00017888,2]
[320294523,1711257038033,-5365.72412429,0.00017888,2]
[320294524,1711257038043,-204.71334846,0.00017888,2]
[320294525,1711257038054,-403.1819564,0.00017888,2]
[320294526,1711257038064,-2171.97487479,0.00017889,2]
[320294527,1711257038074,-2981.50349896,0.00017889,2]
[320294528,1711257038084,-16411.355,0.0001789,2]
[320294529,1711257038093,-29996.9992,0.0001789,2]
[320294530,1711257038103,-1204.609763,0.00017899,2]
[320294531,1711257038112,-2155.43440046,0.000179,2]
[320294532,1711257038122,-151.032411,0.00017988,2]
[320294533,1711257038131,-151.032411,0.00017988,2]
[320294534,1711257038141,-151.032411,0.00017988,2]
[320294535,1711257038150,-151.032411,0.00017988,2]
[320294536,1711257038160,-151.032411,0.00017988,2]
[320294537,1711257038169,-151.032411,0.00017988,3]
[320294538,1711257038179,-151.032411,0.00017988,3]
[320294539,1711257038189,-151.032411,0.00017988,3]
[320294540,1711257038198,-151.032411,0.00017988,3]
[320294541,1711257038208,-151.032411,0.00017988,3]
[320294542,1711257038218,-1837.61029565,0.0001799,5]
[320294543,1711257038241,-128331.99999984,0.0001799,5]
[320294544,1711257038271,-4396.89544198,0.0001799,5]
[320294545,1711257038285,-1004.46488764,0.0001799,5]
[320294546,1711257038346,-1293.3913362,0.0001799,5]
[320294551,1711257040024,-2135.56483216,0.0001799,5]
[320294552,1711257040035,-2841.32818762,0.0001799,5]
[320294553,1711257040047,-640.044,0.0001799,5]
[320294554,1711257040059,-5329.66575909,0.0001799,5]
[320294559,1711257040134,-13877.77389802,0.0001799,5]
[320294560,1711257040190,-761.95,0.0001799,5]
[320294561,1711257040203,-254.322,0.0001799,5]
[320294562,1711257040214,-1015.38230069,0.0001799,5]
[320294563,1711257040416,-29392.55621616,0.0001799,5]
[320294564,1711257040428,-269.75099589,0.0001799,5]
[320294612,1711257043196,-444.41493382,0.000179,2]
[320294614,1711257043206,-19231.99956824,0.0001799,5]
[320294626,1711257043304,-500.0,0.0001799,5]
[320294659,1711257549090,1000.0,0.00015,2]
[320294660,1711257606351,170417.80276002,0.00015,2]
[320294661,1711257658367,5565.31723998,0.00015,2]
[320294662,1711257658396,4971.09323851,0.00015,2]
[320294663,1711257756649,2534.18519538,0.00012,2]
[320294664,1711257798210,291.47525254,0.00015,2]
[320294666,1711257989153,208.51,0.0001434,2]
[320294689,1711258053103,-202.93278222,0.00015248,2]
[320294690,1711258053124,-403.1819564,0.00015249,2]
[320294691,1711258053144,-1885.14604768,0.0001525,2]
[320294692,1711258053163,-193.18174108,0.00015254,2]
[320294693,1711258053182,-1229.28872733,0.00015492,2]
[320294694,1711258053202,-948.0,0.000155,2]
[320294695,1711258053223,-467.306103,0.00016185,2]
[320294696,1711258053244,-262.4,0.00016267,2]
[320294697,1711258053267,-150.0,0.00016308,2]
[320294698,1711258053286,-498.46,0.00016309,2]
[320294699,1711258053306,-1177.14473256,0.00016309,2]
[320294764,1711258232171,-403.1819564,0.00016307,2]
[320294766,1711258232182,-237.45652571,0.00016308,2]
[320294768,1711258232192,-150.0,0.00016308,2]
[320294770,1711258232202,-493.7173692,0.00016309,2]
[320294771,1711258232215,-726.72999162,0.00016309,2]
[320294772,1711258232226,-2194.55656055,0.00016309,2]
[320294774,1711258232283,-2741.6267494,0.00016309,2]
[320294775,1711258232295,-360.15068696,0.00016309,2]
[320294776,1711258232404,-16196.07390971,0.00016309,2]
[320294777,1711258232414,-250.0,0.0001634,2]
[320294778,1711258232423,-1432.85,0.00016372,2]
[320294779,1711258232433,-8707.18,0.00016375,2]
[320294780,1711258232443,-421.19,0.00016443,2]
[320294781,1711258232452,-250.0,0.00016443,2]
[320294782,1711258232462,-193.18174107,0.00016577,2]
[320294783,1711258232471,-208.51,0.00016604,2]
[320294784,1711258232480,-156.15,0.00016635,2]
[320294785,1711258232490,-461.54,0.00016671,2]
[320294786,1711258232500,-196.68,0.00016684,2]
[320294787,1711258232510,-737.6,0.00016722,2]
[320294788,1711258232520,-200.0,0.00016847,2]
[320294789,1711258232529,-174.97,0.00017075,2]
[320294790,1711258232538,-174.97,0.0001716,2]
[320294791,1711258232547,-174.97,0.00017246,2]
[320294792,1711258232557,-174.97,0.00017331,2]
[320294793,1711258232567,-174.97,0.00017417,2]
[320294794,1711258232577,-8426.85468824,0.0001778,2]
[320294795,1711258232586,-4825.7237,0.0001779,2]
[320294813,1711258232801,-269.618521,0.00017851,2]
[320294815,1711258232813,-200.0,0.00017856,2]
[320294817,1711258232824,-800.0,0.00017856,2]
[320294819,1711258232834,-200.0,0.00017856,2]
[320294821,1711258232844,-500.0,0.00017856,2]
[320294824,1711258232855,-200.0,0.00017856,2]
[320294826,1711258232865,-642.15750531,0.00017889,2]
[320294828,1711258232877,-7378.92509817,0.00017889,2]
[320294830,1711258232888,-42916.96221883,0.0001789,2]
[320294831,1711258232913,-820.5235799,0.0001789,2]
[320294832,1711258232943,-885.9549519,0.0001789,2]
[320294833,1711258232959,-257.42222464,0.0001789,2]
[320294834,1711258232973,-266.95294903,0.0001789,2]
[320294835,1711258232985,-984.0,0.0001789,2]
[320294836,1711258232999,-562.34159793,0.0001789,2]
[320294837,1711258233013,-800.0,0.0001789,2]
[320294838,1711258233028,-1041.76,0.0001789,2]
[320294839,1711258233046,-412.83195705,0.0001789,2]
[320294840,1711258233061,-3006.89432072,0.0001789,2]
[320294841,1711258233072,-4869.54095126,0.0001789,2]
[320294843,1711258238185,-311.184893,0.00016664,2]
[320294844,1711258238198,-643.715107,0.00016664,2]
[320294845,1711258238208,-1168.18704372,0.0001789,2]
[320294846,1711258238220,-18003.28066934,0.0001789,2]
[320294847,1711258238240,-52714.08393568,0.0001789,2]
[320294848,1711258238250,-1589.16653874,0.00017898,2]
[320294849,1711258238260,-2446.24872653,0.000179,2]
[320294850,1711258238270,-193.18174107,0.000179,2]
[320294851,1711258238280,-183.37244657,0.000179,2]
[320294852,1711258238289,-7500.0,0.000179,2]
[320294853,1711258238299,-243.99559378,0.000179,2]
[320294854,1711258238309,-2000.0,0.000179,2]
[320294855,1711258238319,-407.93418072,0.00017988,2]
[320294856,1711258238328,-2670.11858483,0.00017988,2]
[320294857,1711258238339,-151.032411,0.00017988,3]
[320294858,1711258238349,-151.032411,0.00017988,3]
[320294859,1711258238359,-151.032411,0.00017988,3]
[320294860,1711258238369,-151.032411,0.00017988,3]
[320294861,1711258238382,-151.032411,0.00017988,3]
[320294862,1711258238392,-151.032411,0.00017988,2]
[320294863,1711258238401,-151.032411,0.00017988,2]
[320294864,1711258238411,-151.032411,0.00017988,2]
[320294865,1711258238421,-151.032411,0.00017988,2]
[320294866,1711258238431,-151.032411,0.00017988,2]
[320294867,1711258238441,-3016.0353,0.00017988,2]
[320294868,1711258238451,-643.73756519,0.00017989,2]
[320294869,1711258238461,-113385.6594168,0.0001799,5]
[320294870,1711258238471,-294.52443388,0.00017999,2]
[320294871,1711258238481,-205.51417289,0.00017999,2]
[320294872,1711258238491,-5008.75142261,0.00017999,2]
[320294873,1711258238501,-703.0,0.00018,2]
[320294874,1711258238510,-5956.14086104,0.00018,2]
[320294875,1711258238522,-11940.0,0.00018,2]
[320294881,1711258238627,-1557.35318063,0.00018,2]
[320294973,1711258240308,-865.76923321,0.00018,2]
[320294974,1711258240321,-2025.26791969,0.00018,2]
[320294975,1711258240484,-642.93,0.00018,2]
[320294976,1711258240580,-99407.72235621,0.00018,2]
[320295063,1711258243246,-5292.24864135,0.00018,2]
[320295065,1711258243260,-12984.98243324,0.00018,2]
[320295085,1711258243452,-3051.62858747,0.00018,2]
[320295086,1711258243508,-760.88440293,0.00018,2]
[320295090,1711258243897,-500.0,0.00018,2]
[320295168,1711258246461,-768.0,0.00017999,2]
[320295170,1711258246473,-2502.63206387,0.00017999,2]
[320295187,1711258246628,-1.24512543,0.00017999,2]
[320295192,1711258246677,-155.43800066,0.00017999,2]
[320295193,1711258246686,-486.5870872,0.00017999,2]
[320295194,1711258246696,-635.0,0.00018,2]
[320295195,1711258246706,-1619.36162619,0.00018,2]
[320295196,1711258246715,-23728.31328995,0.00018,2]
[320295197,1711258246732,-101193.80754057,0.00018,2]
[320295198,1711258246744,-9388.7300877,0.00018,2]
[320295202,1711258401683,515.215809,0.00025,120]
[320295231,1711259431388,-403.1819564,0.00015407,2]
[320295232,1711259431398,-173.0580436,0.00015408,2]
[320295233,1711259431551,-14.5919564,0.00015408,2]
[320295234,1711259431563,-209.92,0.00016895,2]
[320295235,1711259431573,-162.0021588,0.00017024,2]
[320295236,1711259431583,-210.59,0.0001712,2]
[320295237,1711259431592,-314.5758848,0.00017124,2]
[320295238,1711259431628,-5796.08695719,0.00017124,2]
[320295239,1711259431640,-5130.49367964,0.00017124,2]
[320295240,1711259431652,-12658.84347837,0.00017124,2]
[320295241,1711259431662,-250.0,0.00017124,2]
[320295242,1711259431672,-635.92,0.00017159,2]
[320295243,1711259431681,-790.08,0.00017209,2]
[320295244,1711259431690,-7561.77,0.00017211,2]
[320295245,1711259431700,-250.0,0.00017266,2]
[320295246,1711259431710,-187.65,0.00017672,2]
[320295248,1711259431719,-2500.0,0.000178,2]
[320295250,1711259431728,-215.47574705,0.00017818,2]
[320295252,1711259431738,-163.28605529,0.0001782,2]
[320295254,1711259431747,-200.0,0.00017856,2]
[320295256,1711259431756,-800.0,0.00017856,2]
[320295258,1711259431764,-200.0,0.00017856,2]
[320295260,1711259431773,-500.0,0.00017856,2]
[320295261,1711259431783,-200.0,0.00017856,2]
[320295263,1711259431792,-88516.0891,0.000179,2]
[320295265,1711259431801,-2242.39466594,0.000179,2]
[320295267,1711259431811,-2500.0,0.000179,2]
[320295269,1711259431820,-2243.9641,0.000179,2]
[320295280,1711259432061,-151.032411,0.00017988,2]
[320295281,1711259432071,-151.032411,0.00017988,2]
[320295282,1711259432080,-151.032411,0.00017988,2]
[320295283,1711259432089,-151.032411,0.00017988,2]
[320295284,1711259432099,-151.032411,0.00017988,3]
[320295285,1711259432109,-151.032411,0.00017988,3]
[320295286,1711259432120,-151.032411,0.00017988,3]
[320295287,1711259432129,-151.032411,0.00017988,3]
[320295288,1711259432138,-204.56346196,0.00017998,2]
[320295289,1711259432148,-363.83126272,0.00017998,2]
[320295290,1711259432157,-260.77071991,0.00017998,2]
[320295291,1711259432166,-166.28115449,0.00017998,2]
[320295292,1711259432175,-322.10609916,0.00017999,2]
[320295293,1711259432184,-1000.7039,0.00017999,2]
[320295294,1711259432193,-576.0,0.00018,2]
[320295295,1711259432203,-161417.61330986,0.00018,2]
[320295299,1711259437427,-163.28605529,0.0001782,2]
[320295300,1711259437437,-34643.0525533,0.00018,2]
[320295301,1711259437449,-3546.21445584,0.00018,2]
[320295302,1711259437462,-45549.79801481,0.00018,2]
[320295322,1711259439712,-322.10609916,0.00017999,2]
[320295323,1711259439721,-515.0,0.00018,2]
[320295324,1711259439731,-1660.62535284,0.00018,2]
[320295325,1711259439742,-272.07574758,0.00018,2]
[320295326,1711259439754,-333.62781094,0.00018,2]
[320295327,1711259439765,-331.23338246,0.00018,2]
[320295328,1711259441737,-611.5,0.00018,2]
[320295329,1711259441848,-79303.09354289,0.00018,2]
[320295374,1711259442449,-651.73050796,0.00018,2]
[320295401,1711259442605,-769.61865015,0.00018,2]
[320295404,1711259442617,-1381.05676272,0.00018,2]
[320295422,1711259442714,-11173.74496625,0.00018,2]
[320295429,1711259442770,-3821.06127474,0.00018,2]
[320295452,1711259445991,-403.1819564,0.00017999,2]
[320295453,1711259446001,-56966.94216113,0.00018,2]
[320295454,1711259446012,-62449.99999999,0.00018,2]
[320295465,1711259471247,528.96597225,0.00017998,7]
[320295471,1711260327747,178.99,0.00014929,2]
[320295544,1711260433114,-403.1819564,0.00015028,2]
[320295545,1711260433136,-1229.28872733,0.00015029,2]
[320295546,1711260433169,-250.0,0.00016842,2]
[320295547,1711260433192,-1266.28609124,0.00016842,2]
[320295548,1711260440118,-2655.34390876,0.00016842,2]
[320295549,1711260440141,-632.07,0.00016844,2]
[320295550,1711260440161,-210.59,0.00016844,2]
[320295551,1711260440182,-367.93,0.00016845,2]
[320295552,1711260440203,-423.27,0.00016845,2]
[320295553,1711260440223,-250.0,0.00016847,2]
[320295554,1711260440243,-330.09281948,0.00017,2]
[320295555,1711260496598,1043.43144369,0.00025498,30]
[320295570,1711260631528,-403.1819564,0.00016914,2]
[320295572,1711260631537,-166.87553287,0.00016915,2]
[320295574,1711260631585,-1418.85453413,0.00016915,2]
[320295575,1711260631595,-281.84,0.00016962,2]
[320295576,1711260631606,-2704.56,0.00016982,2]
[320295577,1711260631616,-184.55718052,0.00017,2]
[320295578,1711260631626,-250.0,0.00017018,2]
[320295579,1711260631635,-178.99,0.00017193,2]
[320295580,1711260631644,-150.0,0.00017769,2]
[320295581,1711260631654,-150.0,0.00017769,2]
[320295582,1711260631664,-150.0,0.00017789,2]
[320295583,1711260631673,-163.28605529,0.0001782,2]
[320295584,1711260631682,-3013.36275,0.0001782,2]
[320295585,1711260631691,-152.16229839,0.00017833,2]
[320295586,1711260631700,-3641.916,0.0001785,2]
[320295587,1711260631709,-800.0,0.00017855,2]
[320295588,1711260631718,-200.0,0.00017855,2]
[320295589,1711260631727,-800.0,0.00017856,2]
[320295590,1711260631738,-200.0,0.00017856,2]
[320295591,1711260631748,-200.0,0.00017856,2]
[320295592,1711260631757,-800.0,0.00017856,2]
[320295593,1711260631766,-800.0,0.00017856,2]
[320295594,1711260631775,-200.0,0.00017856,2]
[320295595,1711260631784,-200.0,0.00017856,2]
[320295596,1711260631793,-500.0,0.00017856,2]
[320295597,1711260631802,-200.0,0.00017856,2]
[320295598,1711260631811,-150.0,0.00017867,2]
[320295599,1711260631821,-150.0,0.00017879,2]
[320295600,1711260631831,-409.63289727,0.00017882,2]
[320295601,1711260631844,-2421.1316563,0.00017882,2]
[320295602,1711260631870,-387.98420604,0.00017882,2]
[320295603,1711260631892,-435.23724039,0.00017882,2]
[320295604,1711260631901,-3684.685,0.00017893,2]
[320295605,1711260631911,-5539.5166,0.000179,2]
[320295606,1711260631922,-4027.183,0.000179,2]
[320295607,1711260631931,-2453.50505594,0.000179,2]
[320295608,1711260631940,-181.00662585,0.000179,2]
[320295609,1711260631949,-1390.52072138,0.000179,2]
[320295610,1711260631958,-150.0,0.00017918,2]
[320295611,1711260631968,-150.0,0.00017944,2]
[320295612,1711260631978,-151.032411,0.00017988,3]
[320295614,1711260631989,-151.032411,0.00017988,3]
[320295616,1711260632000,-151.032411,0.00017988,3]
[320295618,1711260632009,-151.032411,0.00017988,3]
[320295620,1711260632020,-151.032411,0.00017988,2]
[320295623,1711260632029,-151.032414,0.00017988,2]
[320295626,1711260632040,-4344.55856911,0.0001799,2]
[320295636,1711260632080,-450.5,0.0001799,2]
[320295675,1711260637627,-163.2860553,0.0001782,2]
[320295678,1711260637639,-263.69298984,0.00017989,2]
[320295680,1711260637650,-6236.82095486,0.0001799,2]
[320295689,1711260637736,-91328.78446939,0.0001799,2]
[320295691,1711260637746,-25787.46325505,0.0001799,5]
[320295693,1711260637758,-163.79922447,0.00017998,2]
[320295695,1711260637767,-613.55627316,0.00017999,2]
[320295697,1711260637776,-1015.98756909,0.00017999,2]
[320295699,1711260637785,-250.0,0.00017999,2]
[320295701,1711260637795,-392883.90996394,0.00018,2]
[320295703,1711260637804,-479.0,0.00018,2]
[320295705,1711260637814,-863611.47976536,0.00018,2]
[320295707,1711260637824,-983391.93334283,0.00018,2]
[320295712,1711260637902,-2007.21591766,0.00018,2]
[320295713,1711260637911,-220.0,0.00018,2]
[320295714,1711260637920,-1427.47755948,0.00018093,2]
[320295715,1711260637929,-152.9600011,0.00018152,2]
[320295716,1711260638147,-834.95155371,0.00018274,2]
[320295717,1711260638162,-611.5,0.00018286,2]
[320295718,1711260638173,-232.0,0.0001873,3]
[320295719,1711260638182,-4788.638,0.00018845,2]
[320295720,1711260638192,-430.483,0.00018845,2]
[320295721,1711260638201,-12379.15122092,0.00018845,2]
[320295741,1711260639728,-1633.73841416,0.00018845,2]
[320295742,1711260639743,-643.91,0.00018845,2]
[320295743,1711260639788,-357.84073501,0.00018845,2]
[320295798,1711260642843,-843.95413317,0.00018845,2]
[320295831,1711260645675,-3214.55,0.00018845,2]
[320295832,1711260645785,-979.5029606,0.00018845,2]
[320295833,1711260645798,-6950.0,0.00018845,2]
[320295834,1711260645810,-597.85478752,0.00018845,2]
[320295835,1711260645949,-942.23466529,0.00018845,2]
[320295950,1711261638730,-450.0,0.00015676,2]
[320295951,1711261638753,-150.0,0.00015775,2]
[320295952,1711261638775,-6817.06245612,0.00015776,2]
[320295953,1711261781224,311.39960087,0.00014985,2]
[320295954,1711261783808,200.33596885,0.00014197,2]
[320295955,1711261814821,155.0,0.00014197,2]
[320295956,1711261819334,1030.74959163,0.00014197,2]
[320295964,1711261831743,-403.1819564,0.00015222,2]
[320295965,1711261831753,-285.63612865,0.00015223,2]
[320295966,1711261831800,-181.66997435,0.00015223,2]
[320295967,1711261831810,-2314.66405211,0.00015296,2]
[320295968,1711261831821,-689.34182428,0.000153,2]
[320295969,1711261831832,-155.0,0.00015396,2]
[320295970,1711261831841,-150.0,0.00015397,2]
[320295971,1711261831853,-1229.28872733,0.00015397,2]
[320295972,1711261831863,-415.98845556,0.00015397,2]
[320295973,1711261831873,-7038.24696637,0.00015398,2]
[320295974,1711261831897,-5713.68077494,0.00015398,2]
[320295975,1711261831909,-158.80160616,0.00015575,2]
[320295976,1711261831918,-21794.41704748,0.00015576,2]
[320295977,1711261831931,-456.19466595,0.00015576,2]
[320295978,1711261831957,-2249.95780182,0.00015576,2]
[320295979,1711261831969,-10538.96998404,0.00015576,2]
[320295980,1711261831979,-2618.1462,0.00015577,2]
[320295981,1711261831988,-201.45,0.0001558,2]
[320295982,1711261831997,-343.13863821,0.00015774,2]
[320295983,1711261832006,-155.0,0.00015774,2]
[320295984,1711261832015,-1587.20106445,0.00015774,2]
[320295985,1711261832024,-383.03055037,0.00015774,2]
[320295986,1711261832034,-403.80146906,0.00015774,2]
[320295987,1711261832042,-155.15899489,0.00015774,2]